[Event "Czech Open Rapid G1 2024"]
[Site "Pardubice"]
[Date "2024.07.18"]
[Round "9.19"]
[White "Krak, Tomas"]
[Black "Kopriva, Martin"]
[Result "1/2-1/2"]
[Annotator "RC"]
[ECO "B38"]
[WhiteElo "2229"]
[BlackElo "2159"]
[PlyCount "108"]
[EventDate "2024.07.16"]
[EventType "swiss"]
[EventCountry "CZE"]
[SourceTitle "playchess.com"]
[Source "ChessBase"]
[SourceQuality "1"]
[TimeControl "1200+10"]

1. Nf3 {[%emt 0:00:06]} g6 {[%emt 0:00:06]} 2. c4 {[%emt 0:00:02]} Bg7 {[%emt 0:00:02]} 3. Nc3 {[%emt 0:00:01]} d6 {[%emt 0:00:01]} 4. d4 {[%emt 0:00:03]} Nf6 {[%emt 0:00:04]} 5. e4 {[%emt 0:00:01]} O-O {[%emt 0:00:03]} 6. Be2 {[%emt 0:00:01]} c5 {[%emt 0:00:01]} 7. O-O {[%emt 0:00:06]} cxd4 {[%emt 0:00:02]} 8. Nxd4 {[%emt 0:00:02]} Nc6 {[%emt 0:00:01]} 9. Be3 {[%emt 0:00:01]} Bd7 {[%emt 0:00:06]} 10. Qd2 {[%emt 0:00:16]} Nxd4 {[%emt 0:00:04]} 11. Bxd4 {[%emt 0:00:01]} Bc6 {[%emt 0:00:02]} 12. f3 {[%emt 0:00:04]} a5 {[%emt 0:00:02]} 13. b3 {[%emt 0:00:07]} Nd7 {[%emt 0:00:04]} 14. Be3 {[%emt 0:00:02]} Nc5 {[%emt 0:00:02]} 15. Rab1 {[%emt 0:00:01]} e6 {[%emt 0:00:04]} 16. Rfd1 {[%emt 0:00:38]} Be5 {[%emt 0:00:23]} 17. g3 {[%emt 0:00:07]} f5 {[%emt 0:00:43]} 18. exf5 {[%emt 0:01:02]} gxf5 {[%emt 0:00:56]} 19. Nb5 {[%emt 0:00:44]} Bxb5 {[%emt 0:02:39]} 20. cxb5 {[%emt 0:00:05]} Qe7 {[%emt 0:00:42]} 21. Bc4 {[%emt 0:01:10]} Rad8 {[%emt 0:01:27]} 22. f4 {[%emt 0:04:26]} Ne4 {[%emt 0:01:20]} 23. Qxa5 {[%emt 0:00:23]} Bf6 {[%emt 0:01:41]} 24. Qe1 {[%emt 0:01:00]} d5 {[%emt 0:01:15]} 25. Bd3 {[%emt 0:00:09]} Nc3 {[%emt 0:01:16]} 26. Bb6 {[%emt 0:01:11]} Nxd1 {[%emt 0:01:21]} 27. Rxd1 {[%emt 0:02:11]} Rc8 {[%emt 0:00:26]} 28. Ba5 {[%emt 0:01:25]} Qc5+ {[%emt 0:02:30]} 29. Kh1 {[%emt 0:00:03]} Rfe8 {[%emt 0:00:26]} 30. Bb4 {[%emt 0:00:15]} Bc3 {[%emt 0:00:53]} 31. Bxc5 {[%emt 0:01:01]} Bxe1 {[%emt 0:00:01]} 32. Rxe1 {[%emt 0:00:01]} Rxc5 {[%emt 0:00:02]} 33. Bxf5 {[%emt 0:00:01]} Kf7 {[%emt 0:01:06]} 34. Bd3 {[%emt 0:01:34]} Rec8 {[%emt 0:00:16]} 35. Kg2 {[%emt 0:00:11]} Rc1 {[%emt 0:00:26]} 36. Re2 {[%emt 0:02:14]} h6 {[%emt 0:00:20]} 37. f5 {[%emt 0:00:13]} exf5 {[%emt 0:00:20]} 38. Bxf5 {[%emt 0:00:02]} Rd8 {[%emt 0:00:13]} 39. Rd2 {[%emt 0:01:45]} Kf6 {[%emt 0:00:16]} 40. Bd3 {[%emt 0:01:03]} Ke5 {[%emt 0:00:08]} 41. a4 {[%emt 0:00:17]} Kd4 {[%emt 0:00:28]} 42. Bc4+ {[%emt 0:00:22]} Kc5 {[%emt 0:00:09]} 43. a5 {[%emt 0:00:01]} dxc4 {[%emt 0:03:05]} 44. Rxd8 {[%emt 0:00:09]} Rc2+ {[%emt 0:00:01]} 45. Kh3 {[%emt 0:01:24]} cxb3 {[%emt 0:00:02]} 46. a6 {[%emt 0:00:14]} Kb6 {[%emt 0:00:51]} 47. axb7 {[%emt 0:00:17]} Kxb7 {[%emt 0:00:03]} 48. Rd3 {[%emt 0:00:12]} b2 {[%emt 0:00:01]} 49. Rb3 {[%emt 0:00:01]} h5 {[%emt 0:00:15]} 50. b6 {[%emt 0:00:04]} Rd2 {[%emt 0:00:23]} 51. Kh4 {[%emt 0:00:25]} Rxh2+ {[%emt 0:00:16]} 52. Kg5 {[%emt 0:00:01]} Rg2 {[%emt 0:00:27]} 53. Kxh5 {[%emt 0:00:18]} Rxg3 {[%emt 0:00:08]} 54. Rxb2 {[%emt 0:00:02]} Rc3 {[%emt 0:00:04]} 1/2-1/2

[Event "Czech Open Rapid G1 2024"]
[Site "Pardubice"]
[Date "2024.07.18"]
[Round "9.20"]
[White "Shilon Rahav, Eliran"]
[Black "Sherman, Raem"]
[Result "1/2-1/2"]
[Annotator "RC"]
[ECO "C01"]
[WhiteElo "2055"]
[BlackElo "2358"]
[PlyCount "46"]
[EventDate "2024.07.16"]
[EventType "swiss"]
[EventCountry "CZE"]
[SourceTitle "playchess.com"]
[Source "ChessBase"]
[SourceQuality "1"]
[TimeControl "1200+10"]

1. e4 {[%emt 0:00:02]} e6 {[%emt 0:00:01]} 2. d4 {[%emt 0:00:04]} d5 {[%emt 0:00:01]} 3. exd5 {[%emt 0:00:02]} exd5 {[%emt 0:00:02]} 4. Nf3 {[%emt 0:00:02]} Nf6 {[%emt 0:00:03]} 5. Bd3 {[%emt 0:00:04]} Bd6 {[%emt 0:00:05]} 6. O-O {[%emt 0:00:04]} O-O {[%emt 0:00:04]} 7. Bg5 {[%emt 0:00:08]} h6 {[%emt 0:00:07]} 8. Bh4 {[%emt 0:00:03]} b6 {[%emt 0:00:12]} 9. Ne5 {[%emt 0:01:03]} c5 {[%emt 0:00:12]} 10. c3 {[%emt 0:00:13]} g5 {[%emt 0:01:16]} 11. Bg3 {[%emt 0:00:12]} cxd4 {[%emt 0:02:39]} 12. cxd4 {[%emt 0:00:09]} Ne4 {[%emt 0:00:20]} 13. Qh5 {[%emt 0:00:58]} Kg7 {[%emt 0:00:36]} 14. Bxe4 {[%emt 0:00:50]} dxe4 {[%emt 0:00:10]} 15. Nc3 {[%emt 0:00:08]} Bxe5 {[%emt 0:01:22]} 16. dxe5 {[%emt 0:02:12]} Bb7 {[%emt 0:00:49]} 17. Rad1 {[%emt 0:00:19]} Qe7 {[%emt 0:00:08]} 18. Qg4 {[%emt 0:00:29]} Nc6 {[%emt 0:01:00]} 19. Qxe4 {[%emt 0:01:03]} Rad8 {[%emt 0:00:56]} 20. Nd5 {[%emt 0:01:31]} Nb8 {[%emt 0:03:18]} 21. e6 {[%emt 0:04:12]} Rxd5 {[%emt 0:01:40]} 22. Rxd5 {[%emt 0:00:31]} Bxd5 {[%emt 0:00:18]} 23. Qxd5 {[%emt 0:00:21]} Qxe6 {[%emt 0:00:19]} 1/2-1/2

[Event "Czech Open Rapid G1 2024"]
[Site "Pardubice"]
[Date "2024.07.18"]
[Round "9.21"]
[White "Ludvik, Tomas"]
[Black "Eropunov, Gleb"]
[Result "1-0"]
[Annotator "RC"]
[ECO "D24"]
[WhiteElo "2210"]
[BlackElo "2190"]
[PlyCount "77"]
[EventDate "2024.07.16"]
[EventType "swiss"]
[EventCountry "CZE"]
[SourceTitle "playchess.com"]
[Source "ChessBase"]
[SourceQuality "1"]
[TimeControl "1200+10"]

1. d4 {[%emt 0:00:02]} Nf6 {[%emt 0:00:00]} 2. c4 {[%emt 0:00:01]} e6 {[%emt 0:00:01]} 3. Nf3 {[%emt 0:00:02]} d5 {[%emt 0:00:01]} 4. Nc3 {[%emt 0:00:01]} dxc4 {[%emt 0:00:41]} 5. e4 {[%emt 0:00:05]} b5 {[%emt 0:00:02]} 6. e5 {[%emt 0:00:03]} Nd5 {[%emt 0:00:01]} 7. Nxb5 {[%emt 0:00:02]} Nb6 {[%emt 0:00:01]} 8. Be2 {[%emt 0:00:07]} Be7 {[%emt 0:00:04]} 9. Qd2 {[%emt 0:00:28]} Nc6 {[%emt 0:00:15]} 10. O-O {[%emt 0:00:04]} O-O {[%emt 0:00:28]} 11. Rd1 {[%emt 0:00:30]} Bb7 {[%emt 0:00:21]} 12. Qf4 {[%emt 0:00:08]} Qd7 {[%emt 0:00:06]} 13. Qg4 {[%emt 0:01:14]} Kh8 {[%emt 0:00:11]} 14. Nc3 {[%emt 0:00:47]} Nb4 {[%emt 0:00:31]} 15. Bg5 {[%emt 0:01:26]} Bxg5 {[%emt 0:04:26]} 16. Qxg5 {[%emt 0:03:12]} Rad8 {[%emt 0:00:51]} 17. Qh4 {[%emt 0:03:29]} Bxf3 {[%emt 0:01:56]} 18. Bxf3 {[%emt 0:00:09]} Nc2 {[%emt 0:00:02]} 19. Be4 {[%emt 0:00:09]} f5 {[%emt 0:00:15]} 20. exf6 {[%emt 0:00:08]} g5 {[%emt 0:00:03]} 21. Qxg5 {[%emt 0:02:01]} Nxa1 {[%emt 0:00:03]} 22. Rxa1 {[%emt 0:00:01]} Qf7 {[%emt 0:00:43]} 23. Qh6 {[%emt 0:01:31]} Nd7 {[%emt 0:00:41]} 24. Rd1 {[%emt 0:01:21]} Nxf6 {[%emt 0:00:04]} 25. Bf3 {[%emt 0:00:04]} Rd7 {[%emt 0:01:41]} 26. h3 {[%emt 0:00:35]} Rfd8 {[%emt 0:00:17]} 27. Qh4 {[%emt 0:00:39]} Rb8 {[%emt 0:02:05]} 28. Rd2 {[%emt 0:02:01]} c5 {[%emt 0:03:35]} 29. Na4 {[%emt 0:00:15]} cxd4 {[%emt 0:01:24]} 30. Rxd4 {[%emt 0:00:02]} e5 {[%emt 0:02:40]} 31. Rxc4 {[%emt 0:01:25]} Rbd8 {[%emt 0:00:29]} 32. Nc5 {[%emt 0:00:38]} Rc7 {[%emt 0:00:47]} 33. b4 {[%emt 0:00:26]} e4 {[%emt 0:00:22]} 34. Bxe4 {[%emt 0:00:42]} Rd1+ {[%emt 0:00:16]} 35. Kh2 {[%emt 0:00:08]} Ng4+ {[%emt 0:00:25]} 36. hxg4 {[%emt 0:00:24]} Qxc4 {[%emt 0:00:05]} 37. Qf6+ {[%emt 0:00:46]} Rg7 {[%emt 0:00:12]} 38. Ne6 {[%emt 0:00:13]} Qd4 {[%emt 0:00:11]} 39. Nxd4 {[%emt 0:00:04]} 1-0

[Event "Czech Open Rapid G1 2024"]
[Site "Pardubice"]
[Date "2024.07.18"]
[Round "9.22"]
[White "Dehmel, Jens"]
[Black "Berin, Artem"]
[Result "0-1"]
[Annotator "RC"]
[ECO "E36"]
[WhiteElo "1980"]
[BlackElo "2234"]
[PlyCount "76"]
[EventDate "2024.07.16"]
[EventType "swiss"]
[EventCountry "CZE"]
[SourceTitle "playchess.com"]
[Source "ChessBase"]
[SourceQuality "1"]
[TimeControl "1200+10"]

1. d4 {[%emt 0:00:01]} Nf6 {[%emt 0:00:01]} 2. c4 {[%emt 0:00:02]} e6 {[%emt 0:00:01]} 3. Nc3 {[%emt 0:00:01]} Bb4 {[%emt 0:00:02]} 4. Qc2 {[%emt 0:00:01]} d5 {[%emt 0:00:04]} 5. a3 {[%emt 0:00:03]} Bxc3+ {[%emt 0:00:20]} 6. Qxc3 {[%emt 0:00:02]} O-O {[%emt 0:00:04]} 7. Bg5 {[%emt 0:00:02]} h6 {[%emt 0:00:09]} 8. Bh4 {[%emt 0:00:01]} g5 {[%emt 0:00:16]} 9. Bg3 {[%emt 0:00:02]} Ne4 {[%emt 0:00:01]} 10. Qc2 {[%emt 0:00:03]} Nc6 {[%emt 0:00:11]} 11. e3 {[%emt 0:00:11]} f5 {[%emt 0:00:09]} 12. f3 {[%emt 0:00:23]} Nxg3 {[%emt 0:00:26]} 13. hxg3 {[%emt 0:00:02]} Kg7 {[%emt 0:00:08]} 14. Bd3 {[%emt 0:00:45]} Qd6 {[%emt 0:00:52]} 15. Ne2 {[%emt 0:00:09]} Bd7 {[%emt 0:00:04]} 16. f4 {[%emt 0:02:12]} g4 {[%emt 0:00:29]} 17. b4 {[%emt 0:00:18]} dxc4 {[%emt 0:00:31]} 18. Qxc4 {[%emt 0:00:15]} Ne7 {[%emt 0:00:30]} 19. Rc1 {[%emt 0:00:08]} Rac8 {[%emt 0:00:14]} 20. Kf2 {[%emt 0:00:23]} a6 {[%emt 0:00:43]} 21. Nc3 {[%emt 0:00:49]} Bc6 {[%emt 0:00:55]} 22. a4 {[%emt 0:00:27]} Nd5 {[%emt 0:02:40]} 23. b5 {[%emt 0:01:06]} axb5 {[%emt 0:01:01]} 24. axb5 {[%emt 0:00:01]} Nb6 {[%emt 0:00:07]} 25. Qc5 {[%emt 0:01:47]} Be8 {[%emt 0:00:45]} 26. e4 {[%emt 0:00:57]} Rd8 {[%emt 0:01:47]} 27. Ke3 {[%emt 0:00:34]} Bg6 {[%emt 0:00:39]} 28. Rhd1 {[%emt 0:01:13]} fxe4 {[%emt 0:03:55]} 29. Nxe4 {[%emt 0:00:11]} Nd5+ {[%emt 0:00:14]} 30. Ke2 {[%emt 0:01:11]} Qd7 {[%emt 0:00:27]} 31. Nf2 {[%emt 0:00:43]} Qf7 {[%emt 0:00:54]} 32. Bxg6 {[%emt 0:01:23]} Qxg6 {[%emt 0:00:09]} 33. Qc2 {[%emt 0:00:07]} Qe8 {[%emt 0:00:10]} 34. Rb1 {[%emt 0:00:34]} Ra8 {[%emt 0:00:49]} 35. Rh1 {[%emt 0:03:41]} Ra2 {[%emt 0:00:43]} 36. Rb2 {[%emt 0:01:27]} Qxb5+ {[%emt 0:00:05]} 37. Rxb5 {[%emt 0:00:42]} Rxc2+ {[%emt 0:00:02]} 38. Ke1 {[%emt 0:00:46]} Ra8 {[%emt 0:00:09]} 0-1

[Event "Czech Open Rapid G1 2024"]
[Site "Pardubice"]
[Date "2024.07.18"]
[Round "9.23"]
[White "Alexikov, Alexander"]
[Black "Mojzis, Jaroslav"]
[Result "0-1"]
[Annotator "RC"]
[ECO "C44"]
[WhiteElo "2183"]
[BlackElo "2068"]
[PlyCount "84"]
[EventDate "2024.07.16"]
[EventType "swiss"]
[EventCountry "CZE"]
[SourceTitle "playchess.com"]
[Source "ChessBase"]
[SourceQuality "1"]
[TimeControl "1200+10"]

1. e4 {[%emt 0:00:01]} e5 {[%emt 0:00:01]} 2. Nf3 {[%emt 0:00:01]} Nc6 {[%emt 0:00:00]} 3. c3 {[%emt 0:00:02]} d5 {[%emt 0:00:39]} 4. Qa4 {[%emt 0:00:01]} Nf6 {[%emt 0:00:07]} 5. Nxe5 {[%emt 0:01:56]} Bd6 {[%emt 0:00:23]} 6. Nxc6 {[%emt 0:00:06]} bxc6 {[%emt 0:00:02]} 7. d3 {[%emt 0:00:01]} O-O {[%emt 0:00:26]} 8. Nd2 {[%emt 0:00:26]} Re8 {[%emt 0:00:44]} 9. Be2 {[%emt 0:00:06]} Qe7 {[%emt 0:02:40]} 10. O-O {[%emt 0:01:08]} c5 {[%emt 0:01:44]} 11. f4 {[%emt 0:02:52]} c4 {[%emt 0:02:16]} 12. e5 {[%emt 0:00:49]} cxd3 {[%emt 0:00:02]} 13. Bxd3 {[%emt 0:00:02]} Bc5+ {[%emt 0:00:03]} 14. Kh1 {[%emt 0:00:02]} Ng4 {[%emt 0:00:07]} 15. Nf3 {[%emt 0:04:33]} Nf2+ {[%emt 0:00:17]} 16. Rxf2 {[%emt 0:00:02]} Bxf2 {[%emt 0:00:01]} 17. Qc2 {[%emt 0:00:15]} Bb6 {[%emt 0:00:15]} 18. Bxh7+ {[%emt 0:00:03]} Kh8 {[%emt 0:00:01]} 19. Bd3 {[%emt 0:00:43]} Bg4 {[%emt 0:00:34]} 20. Be2 {[%emt 0:02:43]} g6 {[%emt 0:00:53]} 21. Bd2 {[%emt 0:01:08]} Kg7 {[%emt 0:00:52]} 22. Be1 {[%emt 0:00:31]} Rh8 {[%emt 0:01:43]} 23. Bg3 {[%emt 0:00:14]} Rad8 {[%emt 0:02:14]} 24. Nd4 {[%emt 0:01:26]} Bxe2 {[%emt 0:00:18]} 25. Qxe2 {[%emt 0:00:01]} Bxd4 {[%emt 0:02:26]} 26. cxd4 {[%emt 0:00:01]} c5 {[%emt 0:00:27]} 27. Rf1 {[%emt 0:02:33]} Qe6 {[%emt 0:01:41]} 28. f5 {[%emt 0:00:59]} gxf5 {[%emt 0:00:04]} 29. dxc5 {[%emt 0:00:01]} d4 {[%emt 0:00:12]} 30. Qd3 {[%emt 0:00:23]} Rh5 {[%emt 0:00:29]} 31. a3 {[%emt 0:00:23]} a5 {[%emt 0:01:31]} 32. b4 {[%emt 0:00:10]} axb4 {[%emt 0:00:02]} 33. axb4 {[%emt 0:00:00]} Qd5 {[%emt 0:00:21]} 34. Rxf5 {[%emt 0:01:07]} Rxf5 {[%emt 0:00:02]} 35. Qxf5 {[%emt 0:00:01]} d3 {[%emt 0:00:14]} 36. Bh4 {[%emt 0:00:47]} d2 {[%emt 0:01:04]} 37. Qg5+ {[%emt 0:00:10]} Kf8 {[%emt 0:00:03]} 38. Qe7+ {[%emt 0:00:01]} Kg7 {[%emt 0:00:00]} 39. Qg5+ {[%emt 0:00:03]} Kf8 {[%emt 0:00:09]} 40. Qf5 {[%emt 0:00:04]} Kg7 {[%emt 0:00:01]} 41. Bf6+ {[%emt 0:00:01]} Kf8 {[%emt 0:00:05]} 42. h3 d1=Q+ {[%emt 0:00:08]} 0-1

[Event "Czech Open Rapid G1 2024"]
[Site "Pardubice"]
[Date "2024.07.18"]
[Round "9.24"]
[White "Ptacek, Lubos"]
[Black "Lihotsky, Lukas"]
[Result "0-1"]
[Annotator "RC"]
[ECO "B13"]
[WhiteElo "2036"]
[BlackElo "2129"]
[PlyCount "70"]
[EventDate "2024.07.16"]
[EventType "swiss"]
[EventCountry "CZE"]
[SourceTitle "playchess.com"]
[Source "ChessBase"]
[SourceQuality "1"]
[TimeControl "1200+10"]

1. e4 {[%emt 0:00:03]} c6 {[%emt 0:00:04]} 2. d4 {[%emt 0:00:01]} d5 {[%emt 0:00:01]} 3. exd5 {[%emt 0:00:02]} cxd5 {[%emt 0:00:02]} 4. Nf3 {[%emt 0:00:02]} Nc6 {[%emt 0:00:01]} 5. c3 {[%emt 0:00:04]} Bg4 {[%emt 0:00:04]} 6. Be2 {[%emt 0:00:07]} e6 {[%emt 0:00:03]} 7. Bf4 {[%emt 0:00:02]} Bd6 {[%emt 0:00:12]} 8. Bxd6 {[%emt 0:00:03]} Qxd6 {[%emt 0:00:02]} 9. Nbd2 {[%emt 0:00:02]} Nf6 {[%emt 0:00:06]} 10. O-O {[%emt 0:00:03]} O-O {[%emt 0:00:12]} 11. Re1 {[%emt 0:00:03]} Rab8 {[%emt 0:00:50]} 12. Ne5 {[%emt 0:00:09]} Bxe2 {[%emt 0:00:05]} 13. Qxe2 {[%emt 0:00:02]} Nd7 {[%emt 0:02:11]} 14. Ndf3 {[%emt 0:00:47]} Ncxe5 {[%emt 0:02:11]} 15. dxe5 {[%emt 0:00:09]} Qe7 {[%emt 0:00:33]} 16. Rad1 {[%emt 0:00:03]} b5 {[%emt 0:00:27]} 17. Nd4 {[%emt 0:00:27]} Qc5 {[%emt 0:00:33]} 18. Rd3 {[%emt 0:00:47]} b4 {[%emt 0:01:07]} 19. Rh3 {[%emt 0:00:09]} Rfc8 {[%emt 0:00:47]} 20. Qh5 {[%emt 0:00:33]} Nf8 {[%emt 0:00:05]} 21. Rg3 {[%emt 0:01:15]} bxc3 {[%emt 0:01:05]} 22. bxc3 {[%emt 0:00:01]} Qa3 {[%emt 0:01:49]} 23. Qg5 {[%emt 0:01:19]} g6 {[%emt 0:00:34]} 24. h4 {[%emt 0:00:17]} Rxc3 {[%emt 0:01:26]} 25. Nf3 {[%emt 0:00:01]} h5 {[%emt 0:02:13]} 26. Qxh5 {[%emt 0:00:40]} Rc1 {[%emt 0:00:14]} 27. Rxc1 {[%emt 0:01:40]} Qxc1+ {[%emt 0:00:02]} 28. Kh2 {[%emt 0:00:02]} Rb1 {[%emt 0:06:21]} 29. Rg4 {[%emt 0:01:24]} Rb2 {[%emt 0:00:09]} 30. Qg5 {[%emt 0:00:57]} Qxg5 {[%emt 0:00:17]} 31. hxg5 {[%emt 0:00:15]} Rxa2 {[%emt 0:00:04]} 32. Kg3 {[%emt 0:00:05]} a5 {[%emt 0:00:09]} 33. Rd4 {[%emt 0:00:08]} Nd7 {[%emt 0:00:09]} 34. Kf4 {[%emt 0:00:25]} Nc5 {[%emt 0:00:10]} 35. Kg3 {[%emt 0:00:16]} Rb2 {[%emt 0:00:19]} 0-1

[Event "Czech Open Rapid G1 2024"]
[Site "Pardubice"]
[Date "2024.07.18"]
[Round "9.25"]
[White "Freisler, Pavel"]
[Black "Setina, Vaclav"]
[Result "1-0"]
[Annotator "RC"]
[ECO "D33"]
[WhiteElo "2261"]
[BlackElo "1984"]
[PlyCount "95"]
[EventDate "2024.07.16"]
[EventType "swiss"]
[EventCountry "CZE"]
[SourceTitle "playchess.com"]
[Source "ChessBase"]
[SourceQuality "1"]
[TimeControl "1200+10"]

1. Nf3 {[%emt 0:00:06]} Nf6 {[%emt 0:00:04]} 2. c4 {[%emt 0:00:04]} c5 {[%emt 0:00:01]} 3. g3 {[%emt 0:00:10]} Nc6 {[%emt 0:00:15]} 4. Bg2 {[%emt 0:00:03]} e6 {[%emt 0:00:05]} 5. O-O {[%emt 0:00:23]} d5 {[%emt 0:00:02]} 6. cxd5 {[%emt 0:00:02]} exd5 {[%emt 0:00:01]} 7. d4 {[%emt 0:00:02]} Be6 {[%emt 0:00:15]} 8. Nc3 {[%emt 0:00:06]} a6 {[%emt 0:00:43]} 9. Bg5 {[%emt 0:01:08]} Be7 {[%emt 0:02:22]} 10. dxc5 {[%emt 0:01:07]} O-O {[%emt 0:00:16]} 11. Rc1 {[%emt 0:01:31]} d4 {[%emt 0:01:47]} 12. Na4 {[%emt 0:00:10]} Qa5 {[%emt 0:05:42]} 13. b3 {[%emt 0:01:26]} Rad8 {[%emt 0:00:14]} 14. Bd2 {[%emt 0:01:21]} Qb5 {[%emt 0:00:36]} 15. Re1 {[%emt 0:00:24]} Ne4 {[%emt 0:00:30]} 16. Qc2 {[%emt 0:00:32]} Bf5 {[%emt 0:00:47]} 17. Qc4 {[%emt 0:01:15]} Rfe8 {[%emt 0:03:09]} 18. Bf4 {[%emt 0:03:36]} g5 {[%emt 0:01:47]} 19. Bc7 {[%emt 0:01:44]} Rd7 {[%emt 0:00:01]} 20. Bb6 {[%emt 0:00:02]} g4 {[%emt 0:00:47]} 21. Nh4 {[%emt 0:00:03]} Bxh4 {[%emt 0:00:13]} 22. gxh4 {[%emt 0:00:02]} Ne5 {[%emt 0:00:52]} 23. Qxb5 {[%emt 0:01:21]} axb5 {[%emt 0:00:00]} 24. Nb2 {[%emt 0:00:03]} Nc3 {[%emt 0:00:26]} 25. a4 {[%emt 0:00:52]} b4 {[%emt 0:00:32]} 26. Ba5 {[%emt 0:00:56]} Nc6 {[%emt 0:00:01]} 27. Bxc6 {[%emt 0:01:06]} bxc6 {[%emt 0:00:01]} 28. Bxb4 {[%emt 0:00:02]} Nxe2+ {[%emt 0:00:41]} 29. Kf1 {[%emt 0:00:03]} d3 {[%emt 0:00:04]} 30. Rcd1 {[%emt 0:00:16]} Rb8 {[%emt 0:01:08]} 31. Bd2 {[%emt 0:00:43]} Rxb3 {[%emt 0:00:14]} 32. Nc4 {[%emt 0:00:02]} Rd4 {[%emt 0:00:36]} 33. Nd6 {[%emt 0:00:28]} Be6 {[%emt 0:00:15]} 34. Bh6 {[%emt 0:00:39]} Rxa4 {[%emt 0:00:46]} 35. Ra1 {[%emt 0:00:01]} Raa3 {[%emt 0:00:33]} 36. Rxa3 {[%emt 0:00:14]} Rxa3 {[%emt 0:00:01]} 37. Rb1 {[%emt 0:00:04]} Bb3 {[%emt 0:00:03]} 38. Nc4 {[%emt 0:00:07]} d2 {[%emt 0:00:18]} 39. Nxa3 {[%emt 0:02:08]} d1=Q+ {[%emt 0:00:02]} 40. Rxd1 {[%emt 0:00:02]} Bxd1 {[%emt 0:00:01]} 41. Ke1 {[%emt 0:00:01]} Nc3 {[%emt 0:00:15]} 42. Bd2 {[%emt 0:00:05]} Ne4 {[%emt 0:00:05]} 43. Kxd1 {[%emt 0:00:10]} Nxc5 {[%emt 0:00:00]} 44. Ke2 {[%emt 0:00:09]} Kg7 {[%emt 0:00:10]} 45. Nc4 {[%emt 0:00:04]} f6 {[%emt 0:00:10]} 46. h5 {[%emt 0:00:05]} Ne4 {[%emt 0:00:15]} 47. Bf4 {[%emt 0:00:18]} Kf7 {[%emt 0:00:23]} 48. Nd6+ {[%emt 0:00:32]} 1-0

[Event "Czech Open Rapid G1 2024"]
[Site "Pardubice"]
[Date "2024.07.18"]
[Round "9.26"]
[White "Levytskyi, Liubomyr"]
[Black "Hosticka, Frantisek"]
[Result "0-1"]
[Annotator "NA"]
[ECO "B03"]
[WhiteElo "1717"]
[BlackElo "2062"]
[PlyCount "88"]
[EventDate "2024.07.16"]
[EventType "swiss"]
[EventCountry "CZE"]
[SourceTitle "playchess.com"]
[Source "ChessBase"]
[SourceQuality "1"]
[TimeControl "1200+10"]

1. e4 {[%emt 0:00:02]} Nf6 {[%emt 0:00:00]} 2. e5 {[%emt 0:00:18]} Nd5 {[%emt 0:00:02]} 3. d4 {[%emt 0:00:01]} d6 {[%emt 0:00:00]} 4. c4 {[%emt 0:00:00]} Nb6 {[%emt 0:00:00]} 5. f4 {[%emt 0:00:01]} Bf5 {[%emt 0:00:01]} 6. Be3 {[%emt 0:00:30]} e6 {[%emt 0:00:05]} 7. Nc3 {[%emt 0:00:15]} dxe5 {[%emt 0:00:44]} 8. fxe5 {[%emt 0:00:01]} Bb4 {[%emt 0:00:06]} 9. Nf3 {[%emt 0:00:43]} c5 {[%emt 0:00:08]} 10. a3 {[%emt 0:00:29]} Bxc3+ {[%emt 0:01:41]} 11. bxc3 {[%emt 0:00:02]} Nc6 {[%emt 0:00:43]} 12. Bd3 {[%emt 0:03:49]} Ne7 {[%emt 0:00:37]} 13. a4 {[%emt 0:00:20]} O-O {[%emt 0:01:27]} 14. a5 {[%emt 0:00:10]} Nd7 {[%emt 0:00:10]} 15. O-O {[%emt 0:00:02]} Rc8 {[%emt 0:00:35]} 16. a6 {[%emt 0:01:49]} bxa6 {[%emt 0:01:13]} 17. Rxa6 {[%emt 0:00:56]} Bxd3 {[%emt 0:01:55]} 18. Qxd3 {[%emt 0:00:01]} cxd4 {[%emt 0:00:02]} 19. cxd4 {[%emt 0:00:08]} Nc5 {[%emt 0:00:10]} 20. Qa3 {[%emt 0:00:27]} Nxa6 {[%emt 0:00:08]} 21. Qxa6 {[%emt 0:00:02]} Qb6 {[%emt 0:00:57]} 22. Qa3 {[%emt 0:00:15]} Nf5 {[%emt 0:00:39]} 23. c5 {[%emt 0:00:01]} Qb7 {[%emt 0:01:52]} 24. Nd2 {[%emt 0:00:34]} Qd5 {[%emt 0:01:03]} 25. Qc3 {[%emt 0:00:20]} h6 {[%emt 0:01:01]} 26. Nc4 {[%emt 0:00:15]} Rfd8 {[%emt 0:00:42]} 27. Rf4 {[%emt 0:06:03]} Rb8 {[%emt 0:00:58]} 28. h3 {[%emt 0:01:10]} Rb1+ {[%emt 0:02:02]} 29. Kh2 {[%emt 0:00:01]} Rd1 {[%emt 0:00:44]} 30. Qc2 {[%emt 0:03:23]} Ra1 {[%emt 0:01:52]} 31. Qc3 {[%emt 0:01:15]} Ra2 {[%emt 0:00:54]} 32. Rg4 {[%emt 0:00:01]} Kh8 {[%emt 0:00:43]} 33. Nd6 {[%emt 0:00:24]} Nxd6 {[%emt 0:00:17]} 34. exd6 {[%emt 0:00:16]} Rb8 {[%emt 0:00:19]} 35. Bc1 {[%emt 0:01:14]} Rb3 {[%emt 0:00:37]} 36. Qxb3 {[%emt 0:00:36]} Qxb3 {[%emt 0:00:06]} 37. d7 {[%emt 0:00:01]} Qd5 {[%emt 0:00:21]} 38. c6 {[%emt 0:00:04]} Rc2 {[%emt 0:00:05]} 39. Ba3 {[%emt 0:00:29]} Rxc6 {[%emt 0:00:17]} 40. Bf8 {[%emt 0:00:02]} g5 {[%emt 0:00:22]} 41. Bxh6 {[%emt 0:00:07]} Qd6+ {[%emt 0:00:44]} 42. Rg3 {[%emt 0:00:07]} f6 {[%emt 0:00:05]} 43. d5 {[%emt 0:00:05]} exd5 {[%emt 0:00:04]} 44. Bxg5 {[%emt 0:00:24]} fxg5 {[%emt 0:00:06]} 0-1

[Event "Czech Open Rapid G1 2024"]
[Site "Pardubice"]
[Date "2024.07.18"]
[Round "9.27"]
[White "Stocek, Martin"]
[Black "Silar, Lubomir"]
[Result "0-1"]
[Annotator "RC"]
[ECO "D43"]
[WhiteElo "2110"]
[BlackElo "1973"]
[PlyCount "62"]
[EventDate "2024.07.16"]
[EventType "swiss"]
[EventCountry "CZE"]
[SourceTitle "playchess.com"]
[Source "ChessBase"]
[SourceQuality "1"]
[TimeControl "1200+10"]

1. d4 {[%emt 0:00:01]} d5 {[%emt 0:00:01]} 2. c4 {[%emt 0:00:02]} c6 {[%emt 0:00:06]} 3. Nf3 {[%emt 0:00:02]} Nf6 {[%emt 0:00:03]} 4. Qb3 {[%emt 0:00:01]} dxc4 {[%emt 0:01:59]} 5. Qxc4 {[%emt 0:00:02]} e6 {[%emt 0:00:37]} 6. Nc3 {[%emt 0:00:31]} Be7 {[%emt 0:00:04]} 7. g3 {[%emt 0:00:44]} O-O {[%emt 0:00:18]} 8. Bg2 {[%emt 0:00:02]} a5 {[%emt 0:00:36]} 9. O-O {[%emt 0:02:08]} b5 {[%emt 0:00:46]} 10. Qd3 {[%emt 0:00:17]} Ba6 {[%emt 0:00:02]} 11. Qc2 {[%emt 0:00:02]} Nbd7 {[%emt 0:00:31]} 12. Rd1 {[%emt 0:02:29]} Rc8 {[%emt 0:00:18]} 13. e4 {[%emt 0:00:32]} b4 {[%emt 0:01:16]} 14. Na4 {[%emt 0:02:13]} Bb5 {[%emt 0:00:03]} 15. Nc5 {[%emt 0:02:30]} Qc7 {[%emt 0:03:11]} 16. Bf4 {[%emt 0:01:03]} Qa7 {[%emt 0:00:10]} 17. Rac1 {[%emt 0:01:01]} Rfd8 {[%emt 0:00:51]} 18. Nxd7 {[%emt 0:00:27]} Nxd7 {[%emt 0:00:46]} 19. Be3 {[%emt 0:00:11]} Qb7 {[%emt 0:01:02]} 20. Nd2 {[%emt 0:01:16]} c5 {[%emt 0:01:40]} 21. d5 {[%emt 0:00:05]} exd5 {[%emt 0:01:35]} 22. exd5 {[%emt 0:00:03]} Qa6 {[%emt 0:00:54]} 23. Ne4 {[%emt 0:01:08]} Ne5 {[%emt 0:02:12]} 24. d6 {[%emt 0:05:14]} Bxd6 {[%emt 0:00:26]} 25. Nxd6 {[%emt 0:00:12]} Rxd6 {[%emt 0:00:02]} 26. Rxd6 {[%emt 0:01:48]} Qxd6 {[%emt 0:00:02]} 27. Bf4 {[%emt 0:00:20]} Qf6 {[%emt 0:00:35]} 28. Qe4 {[%emt 0:00:07]} Nd3 {[%emt 0:01:56]} 29. Qb7 {[%emt 0:00:02]} Ba6 {[%emt 0:00:01]} 30. Bg5 {[%emt 0:00:22]} Bxb7 {[%emt 0:00:06]} 31. Bxf6 {[%emt 0:00:02]} Bxg2 {[%emt 0:00:03]} 0-1